bitfinex-derivatives/quotes_ETHF0:USTF0_20260128
["timestamp","ask_amount","ask_price","bid_price","bid_amount"]
[1769627756715,0.1662,3012.4,3010.8,3.70193002]
[1769627757402,0.66373703,3012.8,3010.8,3.86821002]
[1769627757609,3.24318565,3012.7,3010.8,3.86821002]
[1769627757810,4.94156498,3013.5,3011.3,3.70900618]
[1769627758112,3.40992327,3013.3,3011.3,3.70900618]
[1769627758314,3.24377327,3013.2,3011.3,3.70900618]
[1769627759303,3.24377327,3013.2,3011.7,3.54274618]
[1769627759503,3.24377327,3013.2,3011.6,0.16624]
[1769627759504,0.16613,3013.6,3011.9,3.54274618]
[1769627759707,3.24558119,3013.3,3011.9,3.54274618]
[1769627759909,3.24558119,3013.2,3011.9,3.54274618]
[1769627760111,0.16613,3013.6,3011.9,3.54274618]
[1769627760312,3.24545847,3013.3,3011.9,3.54274618]
[1769627760615,3.24545847,3013.2,3011.9,3.54274618]
[1769627760810,0.16613,3013.6,3011.9,3.54274618]
[1769627760811,3.2457857,3013.1,3011.9,3.54274618]
[1769627761010,3.245768,3013.0,3011.9,3.54274618]
[1769627761215,0.16616,3013.1,3011.9,3.54274618]
[1769627761216,3.245768,3012.9,3011.9,3.54274618]
[1769627761413,3.245768,3012.8,3011.9,3.54274618]
[1769627761715,3.245768,3012.7,3011.9,3.54274618]
[1769627761912,0.00284088,3013.4,3011.9,3.54274618]
[1769627762109,3.24546919,3013.3,3011.9,3.54274618]
[1769627762308,0.00284088,3013.4,3011.9,3.54274618]
[1769627762515,3.24564582,3013.3,3011.9,3.54274618]
[1769627762717,0.00284088,3013.4,3011.9,3.54274618]
[1769627762917,3.24564701,3013.3,3011.9,3.54274618]
[1769627763215,0.00284088,3013.4,3011.9,3.54274618]
[1769627763517,3.24521649,3013.3,3011.9,3.54274618]
[1769627763716,3.24521649,3013.2,3011.9,3.54274618]
[1769627763917,0.00284088,3013.4,3011.9,3.54274618]
[1769627764216,3.41025502,3013.3,3011.9,3.54274618]
[1769627764414,3.24410502,3013.2,3011.9,3.54274618]
[1769627764609,0.00284088,3013.4,3011.9,3.54274618]
[1769627764610,3.24410502,3013.1,3011.9,3.54274618]
[1769627764805,0.00284088,3013.4,3012.1,3.54274618]
[1769627765004,0.16612,3014.0,3012.1,3.54274618]
[1769627765213,3.24429428,3013.9,3012.1,3.54274618]
[1769627765514,3.24429428,3013.8,3012.1,3.54274618]
[1769627765710,3.24429428,3013.7,3012.1,3.54274618]
[1769627765911,3.24429428,3013.6,3012.1,3.54274618]
[1769627767111,0.00333171,3013.7,3012.3,3.54274618]
[1769627767512,4.94156498,3014.5,3012.3,3.70894618]
[1769627767818,3.24320316,3014.4,3012.3,3.70894618]
[1769627768014,5.8960311,3014.9,3013.0,3.54274618]
[1769627768015,3.24320316,3014.3,3013.0,3.54274618]
[1769627768217,0.16606,3014.9,3013.2,3.54274618]
[1769627768423,3.24229443,3014.8,3013.2,3.54274618]
[1769627768720,3.24229443,3014.7,3013.2,3.54566841]
[1769627768917,3.24229443,3014.6,3013.2,3.54566841]
[1769627769115,3.24229443,3014.5,3013.2,3.54566841]
[1769627769420,0.00395462,3014.8,3013.2,3.54566841]
[1769627769621,3.21918617,3014.7,3013.2,3.54566841]
[1769627769821,3.21918617,3014.6,3013.2,3.54566841]
[1769627770022,3.21918617,3014.5,3013.2,3.54566841]
[1769627770217,0.16612,3013.9,3012.7,3.54274618]
[1769627770415,0.79741665,3013.7,3012.0,3.54274618]
[1769627770621,0.16615,3013.4,3012.0,3.54274618]
[1769627771216,0.16615,3013.4,3012.0,3.5454375]
[1769627772818,0.94696817,3013.3,3012.0,3.5454375]
[1769627773025,0.78080817,3013.0,3012.0,0.00269132]
[1769627773216,0.78080817,3012.5,3010.8,3.54274618]
[1769627773416,0.94702817,3012.0,3010.8,3.54274618]
[1769627773619,0.78080817,3012.4,3010.8,3.54274618]
[1769627773819,3.22004543,3012.3,3010.8,3.54274618]
[1769627774020,3.22004543,3012.2,3010.8,3.54274618]
[1769627774222,0.00424081,3012.2,3010.8,3.54582224]
[1769627775120,0.00424081,3012.2,3011.0,3.54274618]
[1769627775729,0.78080817,3013.2,3011.0,3.54274618]
[1769627775931,3.99933325,3013.1,3011.0,3.54274618]
[1769627776129,3.21741029,3013.0,3011.0,3.54274618]
[1769627776335,3.21741029,3012.9,3011.0,3.54274618]
[1769627776532,3.21741029,3012.8,3011.0,3.54274618]
[1769627776834,0.00335461,3012.8,3011.0,3.54274618]
[1769627777735,0.00335461,3012.8,3011.0,3.70902618]
[1769627777934,0.00335461,3012.8,3011.5,3.54274618]
[1769627779829,0.00335461,3012.8,3011.5,3.70899618]
[1769627780023,0.70095645,3013.8,3011.5,3.70899618]
[1769627780227,3.21586491,3013.7,3011.5,3.70899618]
[1769627780422,3.21586491,3013.6,3011.8,3.54274618]
[1769627780628,0.16612,3013.8,3011.8,3.54274618]
[1769627781034,0.16961709,3013.8,3011.8,3.54274618]
[1769627781233,0.00349709,3013.8,3012.1,3.54274618]
[1769627782330,0.16613,3013.7,3012.1,3.54274618]
[1769627783329,0.84431741,3013.7,3012.1,3.54274618]
[1769627784139,0.16613,3013.7,3012.1,3.54274618]
[1769627786131,0.84292078,3013.7,3012.1,3.54274618]
[1769627786938,0.67444544,3013.5,3012.1,3.54274618]
[1769627787538,0.67554547,3013.3,3011.8,3.39422491]
[1769627787740,0.84170547,3013.1,3011.8,3.39422491]
[1769627788630,0.16616,3013.1,3011.8,3.39422491]
[1769627789041,0.16619,3012.7,3011.8,3.39422491]
[1769627789342,0.67328579,3012.9,3011.5,3.39422491]
[1769627789539,0.67328579,3012.7,3011.5,3.39422491]
[1769627789836,17.18746206,3013.8,3011.5,3.39422491]
[1769627789837,0.16616,3013.2,3011.5,3.39422491]
[1769627790432,40.96616,3013.2,3011.5,3.39422491]
[1769627790934,0.16616,3013.2,3011.5,3.39422491]
[1769627791743,0.16961709,3013.8,3011.7,3.39422491]
[1769627791935,3.2161065,3013.7,3011.9,3.39422491]
[1769627792136,3.3822465,3013.6,3011.9,3.39422491]
[1769627792341,0.16614,3013.6,3011.9,3.39422491]
[1769627792542,0.68616814,3013.8,3011.9,3.39422491]
[1769627792738,3.21609083,3013.7,3011.9,3.39422491]
[1769627792943,3.21609083,3013.6,3011.9,3.39422491]
[1769627793143,0.00349709,3013.8,3011.9,3.39422491]
[1769627793343,3.21530887,3013.7,3011.9,3.56045491]
[1769627793544,0.00349709,3013.8,3011.9,3.56045491]
[1769627794343,0.00349709,3013.8,3012.1,3.39422491]
[1769627794538,0.67098404,3015.0,3012.8,3.39422491]
[1769627794743,0.67098404,3015.0,3012.7,0.16618]
[1769627794744,3.21641918,3014.9,3013.0,3.39422491]
[1769627795050,3.21641918,3014.8,3013.0,3.39422491]
[1769627795241,3.21641918,3014.7,3013.0,3.39422491]
[1769627795438,0.67098404,3015.0,3013.0,3.39422491]
[1769627795638,3.21555048,3014.9,3013.0,3.3972839]
[1769627795838,0.00375037,3015.0,3013.0,3.3972839]
[1769627796041,3.21559664,3014.9,3013.2,3.39422491]
[1769627796248,0.00375037,3015.0,3013.2,3.39422491]
[1769627796447,3.21448665,3014.9,3013.2,3.39422491]
[1769627796649,0.85999087,3015.0,3013.2,3.39422491]
[1769627796847,3.2144544,3014.9,3013.2,3.39422491]
[1769627797053,0.16607,3014.8,3013.2,3.39422491]
[1769627797253,0.84455653,3014.7,3013.2,3.39422491]
[1769627798149,3.21299867,3014.6,3013.2,3.39422491]
[1769627798455,0.67848653,3014.7,3013.2,3.39422491]
[1769627798752,0.67848653,3014.4,3013.0,3.3972839]
[1769627798955,3.21287996,3014.3,3013.0,3.3972839]
[1769627799253,0.84457653,3014.4,3013.0,3.3972839]
[1769627799445,0.69524372,3014.2,3013.0,0.00305899]
[1769627800850,0.86134372,3014.2,3013.0,0.00305899]
[1769627801155,0.16612,3013.9,3013.0,0.00305899]
[1769627801655,0.8515365,3013.9,3013.0,0.00305899]
[1769627801858,0.8515465,3013.7,3013.0,0.00305899]
[1769627802252,0.16613,3013.7,3013.0,0.00305899]
[1769627802451,0.16613,3013.7,3013.0,3.3972839]
[1769627802756,0.6854165,3014.1,3013.0,3.3972839]
[1769627802961,3.21606034,3014.0,3013.0,3.3972839]
[1769627803153,40.8,3014.3,3013.0,3.3972839]
[1769627803342,3.21630734,3014.2,3013.0,3.3972839]
[1769627803547,3.87605401,3014.1,3013.0,0.00305899]
[1769627803743,3.21630734,3014.0,3013.0,0.00305899]
[1769627804648,3.21630734,3014.0,3013.0,3.3972839]
[1769627806757,0.1661,3014.2,3013.0,3.3972839]
[1769627806953,3.22051162,3014.1,3013.0,3.3972839]
[1769627807148,0.1661,3014.2,3013.0,3.3972839]
[1769627807652,3.026,3014.4,3013.0,3.3972839]
[1769627807852,3.22134168,3014.3,3013.0,3.3972839]
[1769627808060,0.81731,3014.8,3013.0,3.3972839]
[1769627808246,3.22142829,3014.7,3013.0,3.3972839]
[1769627808446,3.22142829,3014.6,3013.0,3.3972839]
[1769627808652,3.22142829,3014.5,3013.0,3.3972839]
[1769627808852,3.22142829,3014.4,3013.0,3.3972839]
[1769627809054,3.04175037,3015.0,3013.0,3.5634439]
[1769627809248,3.22113967,3014.9,3013.0,3.5634439]
[1769627809447,3.22113967,3014.8,3013.0,3.5634439]
[1769627809656,3.22113967,3014.7,3013.0,3.5634439]
[1769627809857,3.22113967,3014.6,3013.0,3.3972839]
[1769627810052,3.86741426,3014.5,3013.0,3.3972839]
[1769627810253,3.22113967,3014.4,3013.0,3.3972839]
[1769627810453,0.16608,3014.6,3013.0,3.3972839]
[1769627810656,3.22184117,3014.5,3013.0,3.3972839]
[1769627810959,3.04175037,3015.0,3013.0,3.5634439]
[1769627811160,3.22194357,3014.9,3013.0,3.5634439]
[1769627811353,3.22194357,3014.8,3013.0,3.5634439]
[1769627811660,3.22194357,3014.7,3013.0,3.5634439]
[1769627811860,3.22194357,3014.6,3013.0,3.5634439]
[1769627812057,3.04175037,3015.0,3013.0,3.5634439]
[1769627812253,3.22109721,3014.9,3013.2,3.39422491]
[1769627812458,3.22109721,3014.8,3013.2,3.39422491]
[1769627812658,0.00375037,3015.0,3013.2,3.39422491]
[1769627812859,3.22143253,3014.9,3013.2,3.56037491]
[1769627813065,3.22143253,3014.8,3013.2,3.56037491]
[1769627813265,0.16981037,3015.0,3013.2,3.56037491]
[1769627813465,3.22048274,3014.9,3013.2,3.56037491]
[1769627813668,0.16981037,3015.0,3013.2,3.56037491]
[1769627813968,3.22055535,3014.9,3013.2,3.56037491]
[1769627814168,3.22055535,3014.8,3013.2,3.56037491]
[1769627814465,0.16981037,3015.0,3013.2,3.56037491]
[1769627814666,3.22024908,3014.9,3013.2,3.56037491]
[1769627814867,3.22024908,3014.8,3013.2,3.56037491]
[1769627815065,0.16981037,3015.0,3013.2,3.56037491]
[1769627815262,3.2197844,3014.9,3013.2,3.56037491]
[1769627815567,0.00375037,3015.0,3013.2,3.56037491]
[1769627817169,0.00375037,3015.0,3013.4,3.40132537]
[1769627818267,0.62282608,3015.0,3013.4,3.40132537]
[1769627818460,0.61907571,3014.8,3013.4,3.40132537]
[1769627819167,0.78514571,3014.8,3013.4,3.40132537]
[1769627820072,3.22453495,3014.7,3013.4,3.40132537]
[1769627820268,0.78514571,3014.8,3013.4,3.40132537]
[1769627820470,0.64090449,3014.6,3013.0,3.39346997]
[1769627820667,0.80700449,3014.2,3013.0,3.39346997]
[1769627820872,0.64090449,3014.1,3013.0,3.39346997]
[1769627822171,0.16607,3014.8,3013.0,3.39346997]
[1769627822366,3.87725602,3014.7,3013.0,3.39346997]
[1769627822562,0.65031543,3014.5,3013.0,3.39346997]
[1769627822766,3.22694059,3014.4,3013.0,3.39346997]
[1769627824479,0.16609,3014.3,3013.0,3.39346997]
[1769627825271,3.22990504,3014.2,3013.0,3.39346997]
[1769627825572,3.22947445,3014.1,3013.0,3.39346997]
[1769627825771,3.22947445,3014.0,3013.0,3.39346997]
[1769627825972,0.62588589,3014.2,3013.0,3.39346997]
[1769627826173,3.22952802,3014.1,3013.0,3.39346997]
[1769627826373,3.22952802,3014.0,3013.0,3.39346997]
[1769627826574,3.23003608,3013.9,3013.0,0.00305899]
[1769627826773,0.79199589,3014.0,3013.0,0.00305899]
[1769627826972,3.2300413,3013.9,3013.0,0.00305899]
[1769627827177,0.79199589,3014.0,3013.0,0.00305899]
[1769627827369,3.22998075,3013.9,3013.0,3.40349137]
[1769627827575,0.16611,3014.0,3013.0,3.40349137]
[1769627827775,3.22998773,3013.9,3013.0,3.40349137]
[1769627827975,0.16611,3014.0,3013.0,3.40349137]
[1769627828778,0.7903868,3014.5,3013.0,3.40349137]
[1769627828985,3.23027331,3014.4,3013.0,3.40349137]
[1769627829280,3.23027331,3014.3,3013.0,3.40349137]
[1769627829484,0.16609,3014.5,3013.0,3.40349137]
[1769627829676,3.23119046,3014.4,3013.0,3.40349137]
[1769627829876,0.16609,3014.5,3013.0,3.40349137]
[1769627830077,3.23150424,3014.4,3013.0,3.40349137]
[1769627830278,6.49806,3014.9,3013.0,3.40349137]
[1769627830574,3.23203802,3014.8,3013.0,3.40349137]
[1769627830775,3.23203802,3014.7,3013.0,3.40349137]
[1769627830976,3.23203802,3014.6,3013.0,3.40349137]
[1769627831180,0.16606,3014.9,3013.0,3.40349137]
[1769627831376,3.8583773,3014.8,3013.0,3.40349137]
[1769627831586,0.62542089,3014.6,3013.0,3.40349137]
[1769627831888,0.62542089,3014.4,3013.0,3.40349137]
[1769627832187,0.16612,3013.9,3013.0,3.40349137]
[1769627832388,0.62542089,3013.8,3013.0,0.00305899]
[1769627832986,0.16612,3013.9,3013.0,0.00305899]
[1769627833188,0.16612,3013.9,3013.0,3.37297804]
[1769627833392,0.16612,3013.9,3013.0,0.00305899]
[1769627833393,0.16613,3013.7,3013.0,0.00305899]
[1769627833581,3.3990432,3013.6,3012.6,3.36991905]
[1769627833885,0.16614,3013.6,3012.6,3.36991905]
[1769627834287,3.029,3014.1,3012.6,3.36991905]
[1769627834584,3.23827366,3014.0,3012.6,3.37231712]
[1769627834786,3.23827366,3013.9,3012.6,3.37231712]
[1769627835082,3.23827366,3013.8,3012.6,3.37231712]
[1769627835282,0.16611,3014.0,3012.6,3.37231712]
[1769627835476,3.23773361,3013.9,3012.6,3.37231712]
[1769627835676,3.23773361,3013.8,3012.6,3.37231712]
[1769627835876,0.16611,3014.0,3012.6,3.37231712]
[1769627836077,3.23771122,3013.9,3012.6,3.37231712]
[1769627836282,3.23771122,3013.8,3012.6,3.37231712]
[1769627836483,0.16611,3014.0,3012.6,3.37231712]
[1769627836679,3.23756089,3013.9,3012.6,3.37231712]
[1769627836878,3.23756089,3013.8,3012.6,3.37231712]
[1769627837078,0.16611,3014.0,3012.6,3.37231712]
[1769627837279,3.23709299,3013.9,3012.6,3.37231712]
[1769627837482,3.23709299,3013.8,3012.6,3.37231712]
[1769627837687,0.16611,3014.0,3012.6,3.37231712]
[1769627837889,3.23706672,3013.9,3012.6,3.37231712]
[1769627838089,0.16609,3014.5,3012.6,3.37231712]
[1769627838283,3.23731333,3014.4,3012.6,3.37231712]
[1769627838486,3.23731333,3014.3,3012.6,3.37231712]
[1769627838791,3.23731333,3014.2,3012.6,3.37231712]
[1769627838984,3.23731333,3014.1,3012.6,3.37231712]
[1769627839179,0.16609,3014.5,3012.6,3.37231712]
[1769627839384,3.23729593,3014.4,3012.6,3.37231712]
[1769627839584,3.23729593,3014.3,3012.6,3.37231712]
[1769627839787,3.23729593,3014.2,3012.6,3.37231712]
[1769627839993,0.16609,3014.5,3012.6,3.37231712]
[1769627840189,3.23706649,3014.4,3012.6,3.37231712]
[1769627840391,3.23706649,3014.3,3012.6,3.37231712]
[1769627840593,3.23706649,3014.2,3012.6,3.37231712]
[1769627840793,0.16609,3014.5,3012.6,3.37231712]
[1769627840995,3.23719902,3014.4,3012.6,3.37231712]
[1769627841190,3.23719902,3014.3,3012.6,3.37231712]
[1769627841390,3.23719902,3014.2,3012.6,3.37231712]
[1769627841694,0.7626653,3013.9,3012.6,3.37231712]
[1769627841899,0.5965453,3014.3,3012.6,3.37231712]
[1769627842085,3.23714574,3014.2,3012.6,3.37231712]
[1769627842289,3.23714574,3014.1,3012.6,3.37231712]
[1769627842491,0.5965453,3014.3,3012.6,3.37231712]
[1769627842698,3.23717731,3014.2,3012.6,3.37231712]
[1769627842894,3.23717731,3014.1,3012.6,3.37231712]
[1769627843096,0.1661,3014.3,3012.6,3.37231712]
[1769627843398,3.23715424,3014.2,3012.6,3.37231712]
[1769627843691,3.23715424,3014.1,3012.6,3.37231712]
[1769627843897,0.1661,3014.3,3012.6,3.37231712]
[1769627844199,3.23720611,3014.2,3012.6,3.37231712]
[1769627844496,3.23720611,3014.1,3012.6,3.37231712]
[1769627844689,0.1661,3014.3,3012.6,3.37231712]
[1769627844884,3.2375896,3014.2,3012.6,3.37231712]
[1769627845092,0.59836209,3014.5,3012.6,3.37231712]
[1769627845093,0.16612,3014.0,3012.6,3.37231712]
[1769627845292,0.85692424,3013.8,3012.6,3.37231712]
[1769627845493,3.23838356,3013.7,3012.6,3.37231712]
[1769627845686,0.85692424,3013.8,3012.6,3.37231712]
[1769627845891,3.2383888,3013.7,3012.6,3.37231712]
[1769627846091,0.16612,3013.8,3012.6,3.37231712]
[1769627846391,0.1661,3014.3,3012.6,3.37231712]
[1769627846592,3.23933199,3014.2,3012.6,3.37231712]
[1769627846794,3.23933199,3014.1,3012.6,3.37231712]
[1769627846993,3.23933199,3014.0,3012.6,3.37231712]
[1769627847299,0.1661,3014.3,3012.6,3.37231712]
[1769627847499,3.24052628,3014.2,3012.6,3.37231712]
[1769627847702,3.24052628,3014.1,3012.6,3.37231712]
[1769627848000,3.24052628,3014.0,3012.6,3.37231712]
[1769627848202,3.24052628,3013.9,3012.6,3.37231712]
[1769627848501,0.1661,3014.3,3012.6,3.37231712]
[1769627848700,3.24198789,3014.2,3012.6,3.37231712]
[1769627848900,3.24198789,3014.1,3012.6,3.37231712]
[1769627849200,3.24198789,3014.0,3012.6,3.37231712]
[1769627849398,3.24198789,3013.9,3012.6,3.37231712]
[1769627849597,3.24198789,3013.8,3012.6,3.37231712]
[1769627849793,0.1661,3014.3,3012.6,3.37231712]
[1769627850001,4.09315627,3014.2,3012.6,3.37231712]
[1769627850198,3.24284718,3014.1,3012.6,3.37231712]
[1769627850598,3.92705627,3014.1,3012.6,3.37231712]
[1769627850899,4.94156498,3014.5,3012.6,3.37231712]
[1769627850900,0.7005298,3013.9,3012.6,3.37231712]
[1769627851201,3.24284718,3013.8,3012.6,3.37231712]
[1769627851398,0.7005298,3013.6,3012.6,3.37231712]
[1769627851603,3.24284718,3013.5,3012.6,3.37231712]
[1769627851903,0.7005298,3013.6,3012.6,3.37231712]
[1769627852098,3.24275845,3013.5,3012.6,3.37231712]
[1769627852297,0.7005298,3013.6,3012.6,3.37231712]
[1769627852498,3.24249881,3013.5,3012.6,3.37231712]
[1769627852702,0.7005298,3013.6,3012.6,3.37231712]
[1769627853002,3.2425284,3013.5,3012.6,3.37231712]
[1769627853196,0.7005298,3013.6,3012.6,3.37231712]
[1769627853391,0.69906401,3013.4,3012.6,0.00239807]
[1769627853595,0.86522401,3013.2,3011.9,3.64114386]
[1769627853801,3.24262,3013.1,3011.9,3.64114386]
[1769627854000,3.24262,3013.0,3011.9,3.64114386]
[1769627854204,0.16613,3013.7,3011.9,3.64114386]
[1769627854406,3.2410792,3013.6,3011.9,3.64114386]
[1769627854599,3.2410792,3013.5,3011.9,3.64458869]
[1769627854799,3.2410792,3013.4,3011.9,3.64458869]
[1769627855002,3.2410792,3013.3,3011.9,3.64458869]
[1769627855202,3.2410792,3013.2,3011.9,3.64458869]
[1769627855398,0.16613,3013.7,3011.9,3.64458869]
[1769627855595,3.24069581,3013.6,3011.9,3.64458869]
[1769627855795,0.16613,3013.7,3011.9,3.64458869]
[1769627856002,3.24109035,3013.6,3011.9,3.64458869]
[1769627856297,3.2409312,3013.5,3011.9,3.64458869]
[1769627856496,0.71642603,3013.3,3011.9,3.64458869]
[1769627857105,3.24068328,3013.2,3011.9,3.64458869]
[1769627857306,0.71642603,3013.3,3011.9,3.64458869]
[1769627857501,3.23994746,3013.2,3011.9,3.64458869]
[1769627857808,0.71642603,3013.3,3011.9,3.64458869]
[1769627858009,3.23980096,3013.2,3011.9,3.64458869]
[1769627858209,3.23980096,3013.1,3011.9,3.64458869]
[1769627858408,0.16615,3013.3,3011.9,3.64458869]
[1769627858605,3.23904087,3013.2,3011.9,3.64458869]
[1769627858810,0.92403189,3013.9,3011.9,3.64458869]
[1769627859011,3.23955113,3013.8,3011.9,3.64458869]
[1769627859208,3.23955113,3013.7,3011.9,3.81081869]
[1769627859409,3.23955113,3013.6,3011.9,3.81081869]
[1769627859612,0.16612,3013.9,3011.9,3.81081869]
[1769627859909,3.2418191,3013.8,3011.9,3.81081869]
[1769627860109,3.2418191,3013.7,3011.9,3.81081869]
[1769627860310,3.2418191,3013.6,3012.2,3.64114386]
[1769627860510,0.16612,3013.9,3012.2,3.64114386]
[1769627860711,3.24245266,3013.8,3012.2,3.64114386]
[1769627861006,3.24245266,3013.7,3012.2,3.64114386]
[1769627861203,3.24245266,3013.6,3012.2,3.64114386]
[1769627861403,3.24245266,3013.5,3012.2,3.64114386]
[1769627861610,0.16612,3013.8,3012.2,3.64114386]
[1769627861810,3.24357187,3013.7,3012.4,3.64114386]
[1769627862113,3.24357187,3013.6,3012.4,3.64114386]
[1769627862304,3.24357187,3013.5,3012.4,3.64114386]
[1769627862508,0.16612,3013.8,3012.4,3.64114386]
[1769627862700,3.24361733,3013.7,3012.4,3.64114386]
[1769627862910,3.24361733,3013.6,3012.4,3.64114386]
[1769627863212,3.24361733,3013.5,3012.4,3.64114386]
[1769627863409,0.16612,3013.8,3012.4,3.64114386]
[1769627863610,3.24364739,3013.7,3012.4,3.64114386]
[1769627863810,3.24364739,3013.6,3012.4,3.64114386]
[1769627864110,3.24364739,3013.5,3012.4,3.64114386]
[1769627864406,0.72729872,3014.0,3012.4,3.64114386]
[1769627864612,0.16613,3013.7,3012.4,3.64114386]
[1769627864815,3.2436387,3013.6,3012.4,3.64114386]
[1769627865015,3.2436387,3013.5,3012.4,3.64114386]
[1769627865215,5.66852796,3014.3,3012.4,3.64114386]
[1769627865403,3.24292575,3014.2,3012.6,3.64114386]
[1769627865712,0.16609,3014.5,3012.9,3.64114386]
[1769627865713,3.24292575,3014.1,3012.9,3.64114386]
[1769627865914,0.16609,3014.5,3013.1,3.64114386]
[1769627866115,3.24295386,3014.4,3013.1,3.64114386]
[1769627866417,3.24295386,3014.3,3013.1,3.64114386]
[1769627866607,3.24295386,3014.2,3013.1,3.64114386]
[1769627866812,3.24295386,3014.1,3013.1,3.64114386]
[1769627867015,0.16609,3014.5,3013.1,3.64114386]
[1769627867218,3.24216498,3014.4,3013.1,3.64114386]
[1769627867407,0.16605,3015.1,3013.1,3.64114386]
[1769627867607,3.24159686,3014.9,3013.1,3.64114386]
[1769627867918,3.24159686,3014.8,3013.4,3.64114386]
[1769627868114,4.19831491,3015.3,3013.4,3.64114386]
[1769627869516,4.36435491,3015.3,3013.4,3.64114386]
[1769627869720,4.36435491,3015.3,3013.6,3.64114386]
[1769627870018,4.19831491,3015.3,3013.6,3.64114386]
[1769627870811,0.16605,3015.2,3013.6,3.64114386]
[1769627871215,0.74865895,3015.0,3013.6,3.64114386]
[1769627871420,0.91097858,3014.9,3013.6,3.64114386]
[1769627871720,0.74490858,3014.7,3012.8,3.64114386]
[1769627871917,0.74490858,3014.7,3013.0,3.64114386]
[1769627872224,0.00375037,3015.0,3013.0,3.64114386]
[1769627872723,0.74865895,3015.0,3013.0,3.64114386]
[1769627874417,0.74865895,3015.0,3013.0,3.80730386]
[1769627874619,0.00375037,3015.0,3013.3,3.64114386]
[1769627875522,0.16606,3014.9,3013.3,3.64114386]
[1769627878220,0.16606,3014.9,3013.4,3.3802509]
[1769627878622,0.91118665,3014.9,3013.4,3.3802509]
[1769627879131,0.16607,3014.8,3013.4,3.3802509]
[1769627879318,0.75228932,3014.7,3013.4,3.3802509]
[1769627880430,0.00375037,3015.0,3013.4,3.3802509]
[1769627880631,0.75603969,3015.0,3013.4,3.3802509]
[1769627880831,0.00375037,3015.0,3013.4,3.3802509]
[1769627881330,0.00375037,3015.0,3013.4,3.5463909]
[1769627882335,0.75541439,3015.0,3013.4,3.3802509]
[1769627883019,0.78053208,3014.9,3013.4,3.3802509]
[1769627883219,0.94661208,3014.6,3013.4,3.3802509]
[1769627883619,0.16608,3014.6,3013.4,3.3802509]
[1769627884025,0.00375037,3015.0,3013.4,3.3802509]
[1769627885832,0.00375037,3015.0,3013.6,3.3802509]
[1769627886035,0.00375037,3015.0,3013.6,3.5463809]
[1769627886837,0.00375037,3015.0,3013.8,3.3802509]
[1769627887131,0.78479509,3015.0,3013.8,3.3802509]
[1769627888338,0.78104472,3014.6,3013.0,3.3802509]
[1769627888642,0.94713472,3014.4,3013.0,3.3802509]
[1769627889024,0.78083837,3014.2,3013.0,3.3802509]
[1769627889229,3.23242604,3014.1,3012.6,3.3802509]
[1769627889433,0.78083837,3013.9,3012.6,3.3802509]
[1769627890634,0.78083837,3014.5,3012.6,3.3802509]
[1769627890933,3.23393882,3014.4,3012.6,3.3802509]
[1769627891139,0.78083837,3014.5,3012.6,3.3802509]
[1769627891322,0.16608,3014.6,3012.6,3.3802509]
[1769627891633,3.23458999,3014.5,3012.6,3.3802509]
[1769627892032,4.00485901,3014.5,3012.6,3.3802509]
[1769627892230,0.77026902,3014.5,3012.6,3.3802509]
[1769627892428,0.16608,3014.6,3012.6,3.3802509]
[1769627892838,0.16608,3014.6,3012.8,3.3802509]
[1769627894232,2.991,3014.8,3012.8,3.3802509]
[1769627894626,0.00375037,3015.0,3013.3,3.3802509]
[1769627895526,3.24101922,3014.9,3013.3,3.3802509]
[1769627895730,0.00375037,3015.0,3013.3,3.3802509]
[1769627895938,3.24103297,3014.9,3013.3,3.3802509]
[1769627896128,0.00375037,3015.0,3013.3,3.3802509]
[1769627896528,0.00375037,3015.0,3013.2,1.75477492]
[1769627896529,0.00375037,3015.0,3013.5,3.3802509]
[1769627896729,0.00375037,3015.0,3013.8,3.3802509]
[1769627896930,0.00375037,3015.0,3013.8,5.3282509]
[1769627897232,0.00375037,3015.0,3013.9,3.3802509]
[1769627898330,0.16601,3015.8,3013.9,3.3802509]
[1769627898531,3.24178816,3015.7,3013.9,3.5463709]
[1769627898738,3.24178816,3015.6,3013.9,3.5463709]
[1769627899038,3.24178816,3015.5,3013.9,3.5463709]
[1769627899242,3.24178816,3015.4,3013.9,3.5463709]
[1769627899438,3.24178816,3015.4,3013.9,3.3802509]
[1769627899439,3.24114299,3015.3,3013.9,3.3802509]
[1769627899637,0.0033569,3015.4,3013.9,3.3802509]
[1769627899833,3.24113566,3015.3,3013.9,3.3802509]
[1769627900035,0.0033569,3015.4,3013.9,5.3282509]
[1769627900230,3.24110127,3015.3,3014.0,3.3802509]
[1769627900443,0.0033569,3015.4,3014.0,3.3802509]
[1769627900635,3.24082347,3015.3,3014.0,3.3802509]
[1769627900835,0.0033569,3015.4,3014.0,3.3802509]
[1769627901037,3.24082377,3015.3,3014.0,3.3802509]
[1769627901237,0.0033569,3015.4,3014.0,3.3802509]
[1769627901544,3.24045995,3015.3,3014.0,3.3802509]
[1769627901741,0.0033569,3015.4,3014.0,3.3802509]
[1769627905343,0.7978618,3015.4,3014.0,3.3802509]
[1769627905541,4.03324769,3015.3,3014.0,3.3802509]
[1769627905733,3.23874279,3015.2,3014.0,3.3802509]
[1769627905938,3.23874279,3015.1,3014.0,3.3802509]
[1769627906139,0.7945049,3015.3,3014.0,3.3802509]
[1769627906347,3.23829031,3015.2,3014.0,3.3802509]
[1769627906645,0.7945049,3015.3,3014.0,3.3802509]
[1769627906646,3.23829031,3015.1,3014.0,3.3802509]
[1769627906846,0.7945049,3015.3,3014.0,3.3802509]
[1769627907034,3.23852059,3015.2,3014.0,3.3802509]
[1769627907237,3.23852059,3015.1,3014.0,3.3802509]
[1769627907449,0.95703868,3015.4,3014.0,3.3802509]
[1769627907647,3.23843136,3015.3,3014.0,3.3802509]
[1769627907948,3.23843136,3015.2,3014.0,3.3802509]
[1769627908137,0.95703868,3015.4,3014.0,3.3802509]
[1769627908334,0.1693969,3015.4,3014.0,3.3802509]
[1769627908845,0.0033569,3015.4,3014.0,3.3802509]
[1769627909448,0.79611563,3015.4,3014.0,3.3802509]
[1769627909650,0.0033569,3015.4,3014.0,3.3802509]
[1769627910345,0.95879873,3015.3,3014.0,3.3802509]
[1769627910551,0.95880873,3015.2,3014.0,3.3802509]
[1769627912553,3.24785438,3015.1,3014.0,3.3802509]
[1769627912745,0.95880873,3015.2,3014.0,3.3802509]
[1769627912941,4.02535033,3015.1,3014.0,3.3802509]
[1769627913145,0.0033569,3015.4,3013.7,3.44997613]
[1769627913146,0.61144685,3014.8,3013.7,3.44997613]
[1769627913347,0.16606,3014.9,3013.7,3.44997613]
[1769627913542,0.78084375,3015.4,3013.7,3.44997613]
[1769627913745,3.24778018,3015.3,3013.7,3.44997613]
[1769627913947,3.24778018,3015.2,3013.7,3.44997613]
[1769627914256,3.24778018,3015.1,3013.7,3.44997613]
[1769627914455,0.78084375,3015.4,3013.7,3.44997613]
[1769627914752,3.24759001,3015.3,3013.7,3.44997613]
[1769627914950,3.24759001,3015.2,3013.7,3.44997613]
[1769627915150,3.24759001,3015.1,3013.7,3.44997613]
[1769627915345,0.78084375,3015.4,3013.7,3.44997613]